[Event "Titled Tuesday Blitz July 13 2021"]
[White "Cornette, Matthieu"]
[Black "Estrada Nieto, Julian"]
[WhiteFideId "620084"]
[BlackFideId "5101018"]
[WhiteElo "2500"]
[BlackElo "2270"]
[Result "1/2-1/2"]
[Round "07"]
[TimeControl "180+1"]
[Date "2021.07.13"]
[WhiteClock "0:00:06"]
[BlackClock "0:00:02"]

1. Nc3 {[%clk 0:03:00]}  Nf6 {[%clk 0:02:55]} 2. d4 {[%clk 0:02:57]}  d5 {[%clk 0:02:55]} 3. Bf4 {[%clk 0:02:57]}  c6 {[%clk 0:02:52]} 4. e3 {[%clk 0:02:57]}  Bf5 {[%clk 0:02:46]} 5. f3 {[%clk 0:02:56]}  h6 {[%clk 0:02:43]} 6. g4 {[%clk 0:02:55]}  Bh7 {[%clk 0:02:42]} 7. h4 {[%clk 0:02:55]}  e6 {[%clk 0:02:41]} 8. Bd3 {[%clk 0:02:50]}  Bd6 {[%clk 0:02:38]} 9. Nge2 {[%clk 0:02:37]}  Qe7 {[%clk 0:02:34]} 10. Bxh7 {[%clk 0:02:36]}  Nxh7 {[%clk 0:02:29]} 11. Qd3 {[%clk 0:02:29]}  Nd7 {[%clk 0:02:25]} 12. Bxd6 {[%clk 0:02:16]}  Qxd6 {[%clk 0:02:24]} 13. f4 {[%clk 0:02:16]}  Nhf6 {[%clk 0:02:14]} 14. Rg1 {[%clk 0:02:12]}  O-O-O {[%clk 0:02:08]} 15. O-O-O {[%clk 0:02:12]}  Kb8 {[%clk 0:02:02]} 16. g5 {[%clk 0:02:07]}  hxg5 {[%clk 0:02:02]} 17. hxg5 {[%clk 0:02:08]}  Ne8 {[%clk 0:01:55]} 18. Rh1 {[%clk 0:02:03]}  Nc7 {[%clk 0:01:49]} 19. Rh7 {[%clk 0:02:00]}  Rhg8 {[%clk 0:01:34]} 20. Nb1 {[%clk 0:01:41]}  c5 {[%clk 0:01:31]} 21. c3 {[%clk 0:01:32]}  c4 {[%clk 0:01:28]} 22. Qc2 {[%clk 0:01:31]}  Nf8 {[%clk 0:01:23]} 23. Rh3 {[%clk 0:01:27]}  Nd7 {[%clk 0:01:16]} 24. Nd2 {[%clk 0:01:26]}  f6 {[%clk 0:01:15]} 25. Nf3 {[%clk 0:01:24]}  e5 {[%clk 0:00:59]} 26. dxe5 {[%clk 0:01:18]}  fxe5 {[%clk 0:00:58]} 27. e4 {[%clk 0:01:17]}  exf4 {[%clk 0:00:50]} 28. exd5 {[%clk 0:01:15]}  Nc5 {[%clk 0:00:44]} 29. Kb1 {[%clk 0:01:03]}  Nd3 {[%clk 0:00:43]} 30. Ne1 {[%clk 0:00:59]}  Nf2 {[%clk 0:00:39]} 31. Rf3 {[%clk 0:00:46]}  Nxd1 {[%clk 0:00:38]} 32. Qxd1 {[%clk 0:00:47]}  Qxd5 {[%clk 0:00:31]} 33. Qxd5 {[%clk 0:00:44]}  Nxd5 {[%clk 0:00:30]} 34. Nc2 {[%clk 0:00:41]}  Rge8 {[%clk 0:00:27]} 35. Ncd4 {[%clk 0:00:42]}  Re3 {[%clk 0:00:25]} 36. Rf2 {[%clk 0:00:42]}  Rde8 {[%clk 0:00:20]} 37. Nxf4 {[%clk 0:00:38]}  Nxf4 {[%clk 0:00:19]} 38. Rxf4 {[%clk 0:00:38]}  Re1+ {[%clk 0:00:18]} 39. Kc2 {[%clk 0:00:38]}  Rg1 {[%clk 0:00:14]} 40. Rf2 {[%clk 0:00:21]}  Rxg5 {[%clk 0:00:13]} 41. b3 {[%clk 0:00:21]}  cxb3+ {[%clk 0:00:12]} 42. Kxb3 {[%clk 0:00:21]}  a6 {[%clk 0:00:13]} 43. Rf7 {[%clk 0:00:21]}  Rg1 {[%clk 0:00:10]} 44. a4 {[%clk 0:00:21]}  g5 {[%clk 0:00:09]} 45. a5 {[%clk 0:00:20]}  g4 {[%clk 0:00:09]} 46. Nf5 {[%clk 0:00:21]}  Rd1 {[%clk 0:00:06]} 47. Rg7 {[%clk 0:00:20]}  Rb1+ {[%clk 0:00:04]} 48. Kc4 {[%clk 0:00:20]}  Ra1 {[%clk 0:00:04]} 49. Nd6 {[%clk 0:00:18]}  Re6 {[%clk 0:00:03]} 50. Nxb7 {[%clk 0:00:17]}  Ra4+ {[%clk 0:00:01]} 51. Kb3 {[%clk 0:00:15]}  Rae4 {[%clk 0:00:02]} 52. Nc5 {[%clk 0:00:15]}  R4e5 {[%clk 0:00:02]} 53. Nxe6 {[%clk 0:00:13]}  Rxe6 {[%clk 0:00:02]} 54. Rxg4 {[%clk 0:00:14]}  Re5 {[%clk 0:00:02]} 55. Kb4 {[%clk 0:00:14]}  Kb7 {[%clk 0:00:02]} 56. c4 {[%clk 0:00:14]}  Re7 {[%clk 0:00:02]} 57. Rg6 {[%clk 0:00:14]}  Rc7 {[%clk 0:00:03]} 58. Rb6+ {[%clk 0:00:13]}  Ka7 {[%clk 0:00:04]} 59. Kc3 {[%clk 0:00:12]}  Rd7 {[%clk 0:00:03]} 60. c5 {[%clk 0:00:12]}  Rd5 {[%clk 0:00:03]} 61. Kc4 {[%clk 0:00:13]}  Rd8 {[%clk 0:00:03]} 62. c6 {[%clk 0:00:13]}  Rc8 {[%clk 0:00:03]} 63. Kc5 {[%clk 0:00:13]}  Rc7 {[%clk 0:00:04]} 64. Kd6 {[%clk 0:00:13]}  Rh7 {[%clk 0:00:04]} 65. c7 {[%clk 0:00:13]}  Rh6+ {[%clk 0:00:04]} 66. Kd7 {[%clk 0:00:11]}  Rh7+ {[%clk 0:00:04]} 67. Kd6 {[%clk 0:00:10]}  Rh6+ {[%clk 0:00:04]} 68. Kd5 {[%clk 0:00:10]}  Rh5+ {[%clk 0:00:04]} 69. Kd4 {[%clk 0:00:09]}  Rh4+ {[%clk 0:00:04]} 70. Ke5 {[%clk 0:00:09]}  Rh5+ {[%clk 0:00:04]} 71. Kf6 {[%clk 0:00:08]}  Rc5 {[%clk 0:00:02]} 72. Ke6 {[%clk 0:00:03]}  Rxc7 {[%clk 0:00:02]} 73. Kd6 {[%clk 0:00:04]}  Rc3 {[%clk 0:00:02]} 74. Rc6 {[%clk 0:00:04]}  Ra3 {[%clk 0:00:03]} 75. Rc5 {[%clk 0:00:04]}  Kb7 {[%clk 0:00:03]} 76. Rc7+ {[%clk 0:00:04]}  Kb8 {[%clk 0:00:02]} 77. Rc5 {[%clk 0:00:05]}  Kb7 {[%clk 0:00:03]} 78. Rc7+ {[%clk 0:00:05]}  Kb8 {[%clk 0:00:02]} 79. Rc5 {[%clk 0:00:06]}  Kb7 {[%clk 0:00:02]} 1/2-1/2


[Site "https://www.chess.com"]

[Event "Titled Tuesday Blitz July 13 2021"]
[White "Cunjalo, Faris"]
[Black "Sydoryka, Vladyslav"]
[WhiteFideId "14410710"]
[BlackFideId "14145928"]
[WhiteElo "2234"]
[BlackElo "2200"]
[Result "1-0"]
[Round "07"]
[TimeControl "180+1"]
[Date "2021.07.13"]
[WhiteClock "0:00:27"]
[BlackClock "0:00:01"]

1. c4 {[%clk 0:03:00]}  c5 {[%clk 0:02:57]} 2. Nf3 {[%clk 0:03:00]}  Nf6 {[%clk 0:02:57]} 3. Nc3 {[%clk 0:02:59]}  Nc6 {[%clk 0:02:57]} 4. g3 {[%clk 0:02:56]}  d5 {[%clk 0:02:48]} 5. cxd5 {[%clk 0:02:57]}  Nxd5 {[%clk 0:02:49]} 6. Bg2 {[%clk 0:02:57]}  Nxc3 {[%clk 0:02:45]} 7. bxc3 {[%clk 0:02:54]}  e5 {[%clk 0:02:45]} 8. O-O {[%clk 0:02:51]}  Be7 {[%clk 0:02:44]} 9. d3 {[%clk 0:02:49]}  O-O {[%clk 0:02:43]} 10. Rb1 {[%clk 0:02:49]}  Qc7 {[%clk 0:02:42]} 11. Qa4 {[%clk 0:02:43]}  Rb8 {[%clk 0:02:29]} 12. Nd2 {[%clk 0:02:22]}  Bd7 {[%clk 0:02:26]} 13. Qc2 {[%clk 0:02:18]}  b6 {[%clk 0:02:23]} 14. Nc4 {[%clk 0:02:17]}  Be6 {[%clk 0:02:19]} 15. a4 {[%clk 0:02:11]}  f6 {[%clk 0:02:02]} 16. Rd1 {[%clk 0:01:57]}  a6 {[%clk 0:02:00]} 17. Ne3 {[%clk 0:01:55]}  Rfd8 {[%clk 0:01:56]} 18. Ba3 {[%clk 0:01:55]}  Qd7 {[%clk 0:01:45]} 19. Rd2 {[%clk 0:01:47]}  b5 {[%clk 0:01:40]} 20. axb5 {[%clk 0:01:48]}  axb5 {[%clk 0:01:41]} 21. c4 {[%clk 0:01:47]}  Nd4 {[%clk 0:01:33]} 22. Qd1 {[%clk 0:01:41]}  bxc4 {[%clk 0:01:31]} 23. Rxb8 {[%clk 0:01:40]}  Rxb8 {[%clk 0:01:30]} 24. Nxc4 {[%clk 0:01:40]}  Nb3 {[%clk 0:01:24]} 25. Rc2 {[%clk 0:01:38]}  Nd4 {[%clk 0:01:19]} 26. Rc1 {[%clk 0:01:33]}  Qa7 {[%clk 0:01:08]} 27. Ra1 {[%clk 0:01:14]}  Qd7 {[%clk 0:00:48]} 28. Ne3 {[%clk 0:00:57]}  Bb3 {[%clk 0:00:22]} 29. Qe1 {[%clk 0:00:53]}  Be6 {[%clk 0:00:23]} 30. Rc1 {[%clk 0:00:53]}  Qa4 {[%clk 0:00:22]} 31. Bxc5 {[%clk 0:00:36]}  Bxc5 {[%clk 0:00:23]} 32. Rxc5 {[%clk 0:00:35]}  Qa2 {[%clk 0:00:23]} 33. Bf1 {[%clk 0:00:34]}  Rb1 {[%clk 0:00:18]} 34. Rc1 {[%clk 0:00:33]}  Rxc1 {[%clk 0:00:08]} 35. Qxc1 {[%clk 0:00:34]}  Nxe2+ {[%clk 0:00:08]} 36. Bxe2 {[%clk 0:00:34]}  Qxe2 {[%clk 0:00:08]} 37. Qc6 {[%clk 0:00:34]}  Kf7 {[%clk 0:00:04]} 38. Qb7+ {[%clk 0:00:34]}  Kg6 {[%clk 0:00:04]} 39. Qe4+ {[%clk 0:00:34]}  Kf7 {[%clk 0:00:04]} 40. Qb7+ {[%clk 0:00:34]}  Kg6 {[%clk 0:00:04]} 41. Qe4+ {[%clk 0:00:31]}  Kf7 {[%clk 0:00:02]} 42. Qxh7 {[%clk 0:00:30]}  Qe1+ {[%clk 0:00:01]} 43. Kg2 {[%clk 0:00:30]}  Qe2 {[%clk 0:00:02]} 44. Qe4 {[%clk 0:00:30]}  Qh5 {[%clk 0:00:02]} 45. h4 {[%clk 0:00:30]}  Qe2 {[%clk 0:00:01]} 46. d4 {[%clk 0:00:27]} 1-0


[Site "https://www.chess.com"]

[Event "Titled Tuesday Blitz July 13 2021"]
[White "Dowgird, Filip"]
[Black "Svane, Frederik"]
[WhiteFideId "1121235"]
[BlackFideId "12923044"]
[WhiteElo "2209"]
[BlackElo "2459"]
[Result "1-0"]
[Round "07"]
[TimeControl "180+1"]
[Date "2021.07.13"]
[WhiteClock "0:00:13"]
[BlackClock "0:00:03"]

1. d4 {[%clk 0:02:59]}  Nf6 {[%clk 0:02:57]} 2. Bf4 {[%clk 0:02:59]}  Nh5 {[%clk 0:02:57]} 3. Bg5 {[%clk 0:02:56]}  h6 {[%clk 0:02:55]} 4. Bh4 {[%clk 0:02:57]}  g5 {[%clk 0:02:55]} 5. e3 {[%clk 0:02:57]}  gxh4 {[%clk 0:02:36]} 6. Qxh5 {[%clk 0:02:57]}  e6 {[%clk 0:02:34]} 7. Nc3 {[%clk 0:02:55]}  Qg5 {[%clk 0:02:29]} 8. Qe2 {[%clk 0:02:49]}  d5 {[%clk 0:02:24]} 9. O-O-O {[%clk 0:02:47]}  c6 {[%clk 0:02:20]} 10. Nf3 {[%clk 0:02:46]}  Qd8 {[%clk 0:02:18]} 11. Ne5 {[%clk 0:02:45]}  Nd7 {[%clk 0:02:13]} 12. f4 {[%clk 0:02:42]}  Nf6 {[%clk 0:02:06]} 13. Qf2 {[%clk 0:02:38]}  Nd7 {[%clk 0:01:33]} 14. Be2 {[%clk 0:02:27]}  Bb4 {[%clk 0:01:26]} 15. Bh5 {[%clk 0:02:26]}  Rf8 {[%clk 0:01:24]} 16. Nb1 {[%clk 0:02:23]}  Qe7 {[%clk 0:01:17]} 17. a3 {[%clk 0:02:23]}  Bd6 {[%clk 0:01:17]} 18. Nd2 {[%clk 0:02:11]}  Kd8 {[%clk 0:01:14]} 19. Ndf3 {[%clk 0:02:08]}  Kc7 {[%clk 0:01:09]} 20. Qxh4 {[%clk 0:02:06]}  Qxh4 {[%clk 0:01:08]} 21. Nxh4 {[%clk 0:02:07]}  f6 {[%clk 0:01:07]} 22. Neg6 {[%clk 0:01:55]}  Rg8 {[%clk 0:01:06]} 23. g3 {[%clk 0:01:55]}  Nb6 {[%clk 0:01:01]} 24. Rhe1 {[%clk 0:01:51]}  Bd7 {[%clk 0:00:52]} 25. e4 {[%clk 0:01:51]}  Bf8 {[%clk 0:00:46]} 26. Nxf8 {[%clk 0:01:37]}  Raxf8 {[%clk 0:00:45]} 27. b3 {[%clk 0:01:27]}  a5 {[%clk 0:00:37]} 28. Kb2 {[%clk 0:01:27]}  a4 {[%clk 0:00:36]} 29. Re3 {[%clk 0:01:21]}  axb3 {[%clk 0:00:35]} 30. cxb3 {[%clk 0:01:21]}  dxe4 {[%clk 0:00:35]} 31. Rxe4 {[%clk 0:01:19]}  Kd6 {[%clk 0:00:35]} 32. a4 {[%clk 0:01:13]}  Ra8 {[%clk 0:00:33]} 33. Rde1 {[%clk 0:01:12]}  Ra5 {[%clk 0:00:29]} 34. Bf7 {[%clk 0:01:11]}  Rf8 {[%clk 0:00:11]} 35. Bxe6 {[%clk 0:01:11]}  Nd5 {[%clk 0:00:09]} 36. Nf5+ {[%clk 0:01:04]}  Kc7 {[%clk 0:00:09]} 37. Bxd5 {[%clk 0:00:58]}  Rxd5 {[%clk 0:00:06]} 38. Ne3 {[%clk 0:00:52]}  Rd6 {[%clk 0:00:07]} 39. Kc3 {[%clk 0:00:47]}  Kd8 {[%clk 0:00:05]} 40. Nc4 {[%clk 0:00:45]}  Rd5 {[%clk 0:00:05]} 41. R1e2 {[%clk 0:00:42]}  Bg4 {[%clk 0:00:05]} 42. R2e3 {[%clk 0:00:40]}  Rd7 {[%clk 0:00:03]} 43. a5 {[%clk 0:00:34]}  Bf5 {[%clk 0:00:03]} 44. Nb6 {[%clk 0:00:31]}  Rc7 {[%clk 0:00:03]} 45. b4 {[%clk 0:00:23]}  Bxe4 {[%clk 0:00:03]} 46. Rxe4 {[%clk 0:00:23]}  Re7 {[%clk 0:00:02]} 47. Kd3 {[%clk 0:00:23]}  f5 {[%clk 0:00:02]} 48. Re5 {[%clk 0:00:23]}  Rf6 {[%clk 0:00:02]} 49. Na4 {[%clk 0:00:18]}  Rff7 {[%clk 0:00:02]} 50. Nc5 {[%clk 0:00:18]}  Kc7 {[%clk 0:00:03]} 51. Ne6+ {[%clk 0:00:18]}  Kd6 {[%clk 0:00:03]} 52. Nd8 {[%clk 0:00:16]}  Rg7 {[%clk 0:00:02]} 53. Kc4 {[%clk 0:00:14]}  Kd7 {[%clk 0:00:02]} 54. Nxb7 {[%clk 0:00:13]}  Kc7 {[%clk 0:00:03]} 55. Nc5 {[%clk 0:00:13]}  h5 {[%clk 0:00:03]} 56. Ne6+ {[%clk 0:00:13]}  Kd6 {[%clk 0:00:02]} 57. Nxg7 {[%clk 0:00:13]}  Rxg7 {[%clk 0:00:03]} 58. Rxf5 {[%clk 0:00:13]} 1-0


[Site "https://www.chess.com"]

[Event "Titled Tuesday Blitz July 13 2021"]
[White "Dushyant Sharma"]
[Black "Jodorcovsky Werjivker, Paulo"]
[WhiteFideId "25065130"]
[BlackFideId "3700305"]
[WhiteElo "2019"]
[BlackElo "2142"]
[Result "1-0"]
[Round "07"]
[TimeControl "180+1"]
[Date "2021.07.13"]
[WhiteClock "0:01:27"]
[BlackClock "0:01:08"]

1. e4 {[%clk 0:03:00]}  e5 {[%clk 0:02:58]} 2. Nf3 {[%clk 0:02:38]}  Nc6 {[%clk 0:02:58]} 3. Nc3 {[%clk 0:02:39]}  Nf6 {[%clk 0:02:57]} 4. Bb5 {[%clk 0:02:39]}  Bc5 {[%clk 0:02:49]} 5. Nxe5 {[%clk 0:02:38]}  Bxf2+ {[%clk 0:02:43]} 6. Kxf2 {[%clk 0:02:37]}  Nxe5 {[%clk 0:02:44]} 7. d4 {[%clk 0:02:38]}  Nfg4+ {[%clk 0:02:28]} 8. Kg1 {[%clk 0:02:35]}  Qf6 {[%clk 0:02:27]} 9. Qe2 {[%clk 0:02:18]}  Qb6 {[%clk 0:01:54]} 10. Qd2 {[%clk 0:01:50]}  O-O {[%clk 0:01:45]} 11. Be2 {[%clk 0:01:38]}  d6 {[%clk 0:01:39]} 12. Nd5 {[%clk 0:01:34]}  Nf3+ {[%clk 0:01:08]} 13. gxf3 {[%clk 0:01:27]} 1-0


[Site "https://www.chess.com"]

[Event "Titled Tuesday Blitz July 13 2021"]
[White "FGHSMN"]
[Black "Julianos82"]
[WhiteElo "2496"]
[BlackElo "2356"]
[Result "1-0"]
[Round "07"]
[TimeControl "180+1"]
[Date "2021.07.13"]
[WhiteClock "0:00:21"]
[BlackClock "0:00:19"]

1. e4 {[%clk 0:03:00]}  c5 {[%clk 0:02:59]} 2. Nc3 {[%clk 0:02:59]}  a6 {[%clk 0:02:58]} 3. d4 {[%clk 0:02:55]}  cxd4 {[%clk 0:02:57]} 4. Qxd4 {[%clk 0:02:56]}  b5 {[%clk 0:02:56]} 5. f3 {[%clk 0:02:45]}  Nc6 {[%clk 0:02:55]} 6. Qd2 {[%clk 0:02:40]}  Bb7 {[%clk 0:02:55]} 7. b3 {[%clk 0:02:40]}  g6 {[%clk 0:02:51]} 8. Bb2 {[%clk 0:02:37]}  Bg7 {[%clk 0:02:51]} 9. O-O-O {[%clk 0:02:36]}  e6 {[%clk 0:02:39]} 10. Nge2 {[%clk 0:02:23]}  Nge7 {[%clk 0:02:36]} 11. h4 {[%clk 0:02:18]}  h5 {[%clk 0:02:34]} 12. g4 {[%clk 0:02:16]}  Qc7 {[%clk 0:02:31]} 13. gxh5 {[%clk 0:02:12]}  Rxh5 {[%clk 0:02:27]} 14. Kb1 {[%clk 0:02:02]}  b4 {[%clk 0:02:22]} 15. Na4 {[%clk 0:02:01]}  Bxb2 {[%clk 0:02:22]} 16. Nxb2 {[%clk 0:01:59]}  d5 {[%clk 0:02:13]} 17. Nf4 {[%clk 0:01:54]}  Rh8 {[%clk 0:02:02]} 18. exd5 {[%clk 0:01:51]}  exd5 {[%clk 0:01:53]} 19. Nxd5 {[%clk 0:01:47]}  Nxd5 {[%clk 0:01:48]} 20. Qxd5 {[%clk 0:01:48]}  Ne5 {[%clk 0:01:34]} 21. Qd4 {[%clk 0:01:22]}  Bxf3 {[%clk 0:01:22]} 22. Re1 {[%clk 0:01:18]}  f6 {[%clk 0:01:11]} 23. Rg1 {[%clk 0:01:11]}  Rd8 {[%clk 0:01:05]} 24. Qxb4 {[%clk 0:01:08]}  Kf7 {[%clk 0:01:00]} 25. Bc4+ {[%clk 0:00:55]}  Kg7 {[%clk 0:00:55]} 26. Bxa6 {[%clk 0:00:49]}  Rd6 {[%clk 0:00:48]} 27. Bd3 {[%clk 0:00:38]}  Rb8 {[%clk 0:00:40]} 28. Qf4 {[%clk 0:00:33]}  Bh5 {[%clk 0:00:39]} 29. Rxe5 {[%clk 0:00:23]}  fxe5 {[%clk 0:00:40]} 30. Qxe5+ {[%clk 0:00:24]}  Kg8 {[%clk 0:00:34]} 31. Qxh5 {[%clk 0:00:21]}  Qb6 {[%clk 0:00:20]} 32. Rxg6+ {[%clk 0:00:19]}  Rxg6 {[%clk 0:00:19]} 33. Qxg6+ {[%clk 0:00:20]}  Qxg6 {[%clk 0:00:19]} 34. Bxg6 {[%clk 0:00:21]}  Kg7 {[%clk 0:00:19]} 35. Bd3 {[%clk 0:00:21]} 1-0


[Site "https://www.chess.com"]

[Event "Titled Tuesday Blitz July 13 2021"]
[White "Gelman, Alexander"]
[Black "Gledura, Benjamin"]
[WhiteFideId "4118316"]
[BlackFideId "712779"]
[WhiteElo "2375"]
[BlackElo "2326"]
[Result "1-0"]
[Round "07"]
[TimeControl "180+1"]
[Date "2021.07.13"]
[WhiteClock "0:00:31"]
[BlackClock "0:00:07"]

1. d4 {[%clk 0:03:00]}  Nf6 {[%clk 0:02:58]} 2. Nc3 {[%clk 0:03:00]}  d5 {[%clk 0:02:55]} 3. Bf4 {[%clk 0:03:01]}  c6 {[%clk 0:02:54]} 4. f3 {[%clk 0:03:01]}  Qb6 {[%clk 0:02:54]} 5. Qd2 {[%clk 0:03:01]}  Qxb2 {[%clk 0:02:52]} 6. Rb1 {[%clk 0:03:01]}  Qa3 {[%clk 0:02:52]} 7. e4 {[%clk 0:03:02]}  e6 {[%clk 0:02:52]} 8. Bd3 {[%clk 0:03:02]}  Qa5 {[%clk 0:02:51]} 9. Nge2 {[%clk 0:03:02]}  Nbd7 {[%clk 0:02:49]} 10. O-O {[%clk 0:03:02]}  b6 {[%clk 0:02:43]} 11. e5 {[%clk 0:02:29]}  Ng8 {[%clk 0:02:43]} 12. Qe1 {[%clk 0:02:27]}  Ne7 {[%clk 0:02:37]} 13. Bd2 {[%clk 0:02:25]}  Nf5 {[%clk 0:02:15]} 14. Nb5 {[%clk 0:02:05]}  Qxa2 {[%clk 0:01:59]} 15. Nc7+ {[%clk 0:02:04]}  Kd8 {[%clk 0:01:58]} 16. Nxa8 {[%clk 0:02:00]}  Qa3 {[%clk 0:01:20]} 17. g4 {[%clk 0:01:51]}  Nxd4 {[%clk 0:01:06]} 18. Nxd4 {[%clk 0:01:49]}  Bc5 {[%clk 0:01:06]} 19. c3 {[%clk 0:01:45]}  Bxd4+ {[%clk 0:01:06]} 20. cxd4 {[%clk 0:01:42]}  Qxd3 {[%clk 0:01:06]} 21. Ra1 {[%clk 0:01:22]}  Ba6 {[%clk 0:00:52]} 22. Qh4+ {[%clk 0:01:08]}  f6 {[%clk 0:00:47]} 23. Rf2 {[%clk 0:01:09]}  Kc8 {[%clk 0:00:45]} 24. exf6 {[%clk 0:01:07]}  gxf6 {[%clk 0:00:44]} 25. Qh6 {[%clk 0:01:04]}  Rg8 {[%clk 0:00:32]} 26. Re1 {[%clk 0:00:56]}  Kb7 {[%clk 0:00:20]} 27. Rxe6 {[%clk 0:00:56]}  Kxa8 {[%clk 0:00:20]} 28. Re7 {[%clk 0:00:57]}  Qxd4 {[%clk 0:00:10]} 29. h3 {[%clk 0:00:40]}  Ne5 {[%clk 0:00:10]} 30. Qxh7 {[%clk 0:00:39]}  Nxf3+ {[%clk 0:00:10]} 31. Kg2 {[%clk 0:00:37]}  Bf1+ {[%clk 0:00:07]} 32. Kxf1 {[%clk 0:00:33]}  Nxd2+ {[%clk 0:00:07]} 33. Rxd2 {[%clk 0:00:33]}  Qc4+ {[%clk 0:00:07]} 34. Kg2 {[%clk 0:00:31]} 1-0


[Site "https://www.chess.com"]

[Event "Titled Tuesday Blitz July 13 2021"]
[White "German, Sergio"]
[Black "Csonka, Balazs"]
[WhiteFideId "105104"]
[BlackFideId "742910"]
[WhiteElo "2468"]
[BlackElo "2404"]
[Result "0-1"]
[Round "07"]
[TimeControl "180+1"]
[Date "2021.07.13"]
[WhiteClock "0:00:07"]
[BlackClock "0:00:07"]

1. e4 {[%clk 0:03:00]}  e6 {[%clk 0:02:59]} 2. d4 {[%clk 0:02:59]}  d5 {[%clk 0:02:59]} 3. Nc3 {[%clk 0:02:59]}  Nf6 {[%clk 0:02:58]} 4. Bg5 {[%clk 0:02:58]}  dxe4 {[%clk 0:02:56]} 5. Nxe4 {[%clk 0:02:58]}  Be7 {[%clk 0:02:56]} 6. Bxf6 {[%clk 0:02:57]}  gxf6 {[%clk 0:02:57]} 7. g3 {[%clk 0:02:53]}  Bd7 {[%clk 0:02:48]} 8. Bg2 {[%clk 0:02:51]}  Bc6 {[%clk 0:02:48]} 9. Bf3 {[%clk 0:02:26]}  f5 {[%clk 0:02:13]} 10. Nc3 {[%clk 0:02:05]}  Bf6 {[%clk 0:02:12]} 11. Nce2 {[%clk 0:02:03]}  Qd7 {[%clk 0:01:51]} 12. Qd3 {[%clk 0:01:59]}  Na6 {[%clk 0:01:42]} 13. a3 {[%clk 0:01:49]}  O-O-O {[%clk 0:01:41]} 14. O-O-O {[%clk 0:01:47]}  Rhe8 {[%clk 0:01:31]} 15. Qc4 {[%clk 0:01:22]}  Nb8 {[%clk 0:01:19]} 16. Bxc6 {[%clk 0:01:14]}  Nxc6 {[%clk 0:01:19]} 17. Nf3 {[%clk 0:01:14]}  a6 {[%clk 0:01:01]} 18. Rd3 {[%clk 0:01:08]}  Ne7 {[%clk 0:00:57]} 19. Nf4 {[%clk 0:01:04]}  Ng6 {[%clk 0:00:41]} 20. Ne2 {[%clk 0:00:56]}  h5 {[%clk 0:00:31]} 21. h4 {[%clk 0:00:55]}  Qd5 {[%clk 0:00:31]} 22. Qxd5 {[%clk 0:00:53]}  Rxd5 {[%clk 0:00:28]} 23. Rhd1 {[%clk 0:00:47]}  f4 {[%clk 0:00:26]} 24. Nxf4 {[%clk 0:00:31]}  Nxf4 {[%clk 0:00:26]} 25. gxf4 {[%clk 0:00:32]}  Rf5 {[%clk 0:00:26]} 26. Ng5 {[%clk 0:00:28]}  Rxf4 {[%clk 0:00:21]} 27. Nxf7 {[%clk 0:00:15]}  Bxh4 {[%clk 0:00:21]} 28. Ne5 {[%clk 0:00:14]}  Bxf2 {[%clk 0:00:20]} 29. c3 {[%clk 0:00:12]}  h4 {[%clk 0:00:20]} 30. Rh3 {[%clk 0:00:12]}  Bg3 {[%clk 0:00:18]} 31. Ng6 {[%clk 0:00:10]}  Rg4 {[%clk 0:00:16]} 32. Ne5 {[%clk 0:00:10]}  Bxe5 {[%clk 0:00:16]} 33. dxe5 {[%clk 0:00:11]}  Rf8 {[%clk 0:00:08]} 34. Rd4 {[%clk 0:00:10]}  Rxd4 {[%clk 0:00:07]} 35. cxd4 {[%clk 0:00:10]}  Rf4 {[%clk 0:00:08]} 36. Rd3 {[%clk 0:00:09]}  Kd7 {[%clk 0:00:08]} 37. Kd2 {[%clk 0:00:09]}  Kc6 {[%clk 0:00:09]} 38. Ke3 {[%clk 0:00:09]}  Rg4 {[%clk 0:00:08]} 39. Rd2 {[%clk 0:00:09]}  Kd5 {[%clk 0:00:08]} 40. Kf3 {[%clk 0:00:09]}  Rxd4 {[%clk 0:00:08]} 41. Rc2 {[%clk 0:00:09]}  c5 {[%clk 0:00:08]} 42. b4 {[%clk 0:00:08]}  c4 {[%clk 0:00:07]} 43. Rh2 {[%clk 0:00:07]}  b5 {[%clk 0:00:07]} 44. Ke3 {[%clk 0:00:07]}  Kxe5 {[%clk 0:00:07]} 0-1


[Site "https://www.chess.com"]

[Event "Titled Tuesday Blitz July 13 2021"]
[White "Gogolev, Artem"]
[Black "Amburgy, Ryan"]
[WhiteFideId "4116615"]
[BlackFideId "30924820"]
[WhiteElo "2191"]
[BlackElo "2066"]
[Result "1-0"]
[Round "07"]
[TimeControl "180+1"]
[Date "2021.07.13"]
[WhiteClock "0:00:35"]
[BlackClock "0:00:05"]

1. d4 {[%clk 0:02:45]}  Nf6 {[%clk 0:02:59]} 2. c4 {[%clk 0:02:43]}  e6 {[%clk 0:03:00]} 3. g3 {[%clk 0:02:44]}  d5 {[%clk 0:02:59]} 4. Bg2 {[%clk 0:02:43]}  Bb4+ {[%clk 0:03:00]} 5. Nd2 {[%clk 0:02:43]}  O-O {[%clk 0:02:54]} 6. Nf3 {[%clk 0:02:42]}  c6 {[%clk 0:02:53]} 7. O-O {[%clk 0:02:41]}  Nbd7 {[%clk 0:02:53]} 8. Qc2 {[%clk 0:02:40]}  h6 {[%clk 0:02:45]} 9. e4 {[%clk 0:02:39]}  dxe4 {[%clk 0:02:46]} 10. Nxe4 {[%clk 0:02:39]}  Nxe4 {[%clk 0:02:46]} 11. Qxe4 {[%clk 0:02:38]}  Nf6 {[%clk 0:02:47]} 12. Qc2 {[%clk 0:02:37]}  Re8 {[%clk 0:02:34]} 13. Rd1 {[%clk 0:02:32]}  Bd6 {[%clk 0:02:23]} 14. c5 {[%clk 0:02:16]}  Bf8 {[%clk 0:02:14]} 15. Re1 {[%clk 0:02:14]}  Nd5 {[%clk 0:02:11]} 16. Bd2 {[%clk 0:02:13]}  b6 {[%clk 0:02:02]} 17. b4 {[%clk 0:02:10]}  Bb7 {[%clk 0:01:56]} 18. Ne5 {[%clk 0:02:09]}  Rc8 {[%clk 0:01:45]} 19. a4 {[%clk 0:02:00]}  bxc5 {[%clk 0:01:21]} 20. dxc5 {[%clk 0:01:51]}  g5 {[%clk 0:01:17]} 21. Rab1 {[%clk 0:01:33]}  a6 {[%clk 0:00:47]} 22. Bf1 {[%clk 0:01:28]}  Qf6 {[%clk 0:00:46]} 23. Nc4 {[%clk 0:01:23]}  Rcd8 {[%clk 0:00:38]} 24. Qe4 {[%clk 0:01:22]}  Nc3 {[%clk 0:00:33]} 25. Bxc3 {[%clk 0:01:21]}  Qxc3 {[%clk 0:00:34]} 26. Na5 {[%clk 0:01:17]}  Ba8 {[%clk 0:00:34]} 27. Bxa6 {[%clk 0:01:16]}  Rd4 {[%clk 0:00:30]} 28. Qe3 {[%clk 0:01:09]}  Qxe3 {[%clk 0:00:13]} 29. Rxe3 {[%clk 0:01:10]}  Rb8 {[%clk 0:00:10]} 30. Reb3 {[%clk 0:01:07]}  f5 {[%clk 0:00:07]} 31. Bf1 {[%clk 0:00:52]}  Bb7 {[%clk 0:00:04]} 32. Bg2 {[%clk 0:00:50]}  Ba6 {[%clk 0:00:01]} 33. Nxc6 {[%clk 0:00:48]}  Bxc5 {[%clk 0:00:01]} 34. Nxb8 {[%clk 0:00:44]}  Bc4 {[%clk 0:00:01]} 35. bxc5 {[%clk 0:00:40]}  Bxb3 {[%clk 0:00:02]} 36. Rxb3 {[%clk 0:00:41]}  Rd1+ {[%clk 0:00:03]} 37. Bf1 {[%clk 0:00:40]}  Kg7 {[%clk 0:00:03]} 38. c6 {[%clk 0:00:40]}  Rc1 {[%clk 0:00:04]} 39. a5 {[%clk 0:00:41]}  Kf6 {[%clk 0:00:05]} 40. a6 {[%clk 0:00:41]}  g4 {[%clk 0:00:05]} 41. a7 {[%clk 0:00:41]}  f4 {[%clk 0:00:05]} 42. gxf4 {[%clk 0:00:40]}  g3 {[%clk 0:00:05]} 43. hxg3 {[%clk 0:00:40]}  Kf5 {[%clk 0:00:05]} 44. a8=Q {[%clk 0:00:40]}  h5 {[%clk 0:00:05]} 45. c7 {[%clk 0:00:40]}  h4 {[%clk 0:00:05]} 46. Rb5+ {[%clk 0:00:37]}  Kf6 {[%clk 0:00:04]} 47. Nd7+ {[%clk 0:00:36]}  Ke7 {[%clk 0:00:04]} 48. Qd8+ {[%clk 0:00:36]}  Kf7 {[%clk 0:00:04]} 49. Qf8+ {[%clk 0:00:36]}  Kg6 {[%clk 0:00:05]} 50. Rg5+ {[%clk 0:00:36]}  Kh7 {[%clk 0:00:05]} 51. Nf6# {[%clk 0:00:35]} 1-0


[Site "https://www.chess.com"]